bitfinex/quotes_BTCUSD_20251009
["timestamp","ask_amount","ask_price","bid_price","bid_amount"]
[1760001835825,1.74751514,121750.0,121740.0,1e-08]
[1760001836246,1.74753585,121750.0,121740.0,1e-08]
[1760001836450,1.54541465,121750.0,121740.0,1e-08]
[1760001838036,1.66753905,121750.0,121740.0,1e-08]
[1760001838520,1.56753906,121750.0,121740.0,1e-08]
[1760001838729,1.66753905,121750.0,121740.0,1e-08]
[1760001838942,1.74753585,121750.0,121740.0,1e-08]
[1760001840236,1.64753586,121750.0,121740.0,1e-08]
[1760001840436,1.74753585,121750.0,121740.0,1e-08]
[1760001840884,1.64753586,121750.0,121740.0,1e-08]
[1760001841092,1.74753585,121750.0,121740.0,1e-08]
[1760001841707,1.64753586,121750.0,121740.0,1e-08]
[1760001842137,1.74753585,121750.0,121740.0,1e-08]
[1760001842376,1.72541144,121750.0,121740.0,1e-08]
[1760001843266,1.74753585,121750.0,121740.0,1e-08]
[1760001843490,1.72541144,121750.0,121740.0,1e-08]
[1760001843939,1.54541465,121750.0,121740.0,1e-08]
[1760001844985,1.64541464,121750.0,121740.0,1e-08]
[1760001845647,0.16433853,121700.0,121690.0,0.06619503]
[1760001845880,0.77647925,121700.0,121690.0,0.06619503]
[1760001846080,0.85647605,121700.0,121690.0,0.06619503]
[1760001846292,0.16436554,121680.0,121670.0,0.09356503]
[1760001846499,0.42119301,121680.0,121670.0,0.12812503]
[1760001846917,0.42119301,121680.0,121670.0,0.06564331]
[1760001847540,0.42119301,121680.0,121670.0,0.06664331]
[1760001847971,0.7365762,121680.0,121670.0,0.00471331]
[1760001848177,0.69338828,121680.0,121670.0,0.00471331]
[1760001848407,0.69338828,121680.0,121670.0,0.00371331]
[1760001849823,0.69338828,121680.0,121640.0,0.02583]
[1760001849824,0.16439256,121660.0,121640.0,0.02583]
[1760001850041,0.44176573,121650.0,121640.0,0.06039]
[1760001850253,0.42123355,121650.0,121640.0,0.06039]
[1760001850857,0.16441959,121640.0,121630.0,0.07664]
[1760001851258,0.16441959,121640.0,121630.0,0.1112]
[1760001851875,0.2229849,121640.0,121630.0,0.06039]
[1760001852049,0.16441959,121640.0,121630.0,0.06039]
[1760001852841,0.52958335,121640.0,121630.0,0.06039]
[1760001853042,0.52958335,121640.0,121620.0,0.0004]
[1760001853043,0.16443311,121630.0,121620.0,0.0004]
[1760001853244,0.52959687,121630.0,121620.0,0.03496]
[1760001853452,0.16443311,121630.0,121620.0,0.03496]
[1760001853673,0.26876697,121630.0,121620.0,0.03496]
[1760001854023,0.17976698,121630.0,121620.0,0.03496]
[1760001854186,0.17976698,121630.0,121620.0,0.1116]
[1760001854584,0.18076698,121630.0,121620.0,0.1116]
[1760001855569,0.18076698,121630.0,121620.0,0.06079]
[1760001855847,0.18076698,121630.0,121620.0,0.06335533]
[1760001857685,0.16543311,121630.0,121620.0,0.48263]
[1760001857823,0.16543311,121630.0,121620.0,0.11416533]
[1760001858038,0.16543311,121630.0,121620.0,0.11947329]
[1760001858441,0.16543311,121630.0,121620.0,0.11416533]
[1760001858995,0.16543311,121630.0,121620.0,0.11806628]
[1760001860557,0.16543311,121630.0,121620.0,0.12257929]
[1760001863358,0.16543311,121630.0,121620.0,0.12708225]
[1760001864439,0.16543311,121630.0,121620.0,0.11416533]
[1760001865261,0.18073303,121630.0,121620.0,0.11416533]
[1760001865463,0.18073326,121630.0,121620.0,0.11416533]
[1760001866537,0.01630015,121630.0,121620.0,0.27861196]
[1760001866741,0.001,121630.0,121620.0,0.72689778]
[1760001867126,0.16543311,121630.0,121620.0,0.19728739]
[1760001867554,0.16543311,121630.0,121620.0,0.56245115]
[1760001868589,0.16543311,121630.0,121620.0,0.19728739]
[1760001868805,0.16543311,121630.0,121620.0,0.36173402]
[1760001869421,0.16543311,121630.0,121620.0,0.19728739]
[1760001869790,0.18074616,121630.0,121620.0,0.19728739]
[1760001870394,0.21526274,121630.0,121620.0,0.06335533]
[1760001870818,0.18074616,121630.0,121620.0,0.06335533]
[1760001871807,0.18074616,121630.0,121620.0,0.11413533]
[1760001872182,0.00013082,121630.0,121620.0,0.11413533]
[1760001872395,0.18509611,121630.0,121620.0,0.11413533]
[1760001872602,0.16456393,121630.0,121620.0,0.11413533]
[1760001874163,0.16456393,121630.0,121620.0,0.06335533]
[1760001875183,0.16456393,121630.0,121620.0,0.11413533]
[1760001875645,0.16456393,121630.0,121620.0,0.06335533]
[1760001875646,0.42165033,121630.0,121620.0,0.06335533]
[1760001878942,0.16456393,121630.0,121620.0,0.11413533]
[1760001880152,0.16443311,121630.0,121620.0,0.11413533]
[1760001883048,0.16443311,121630.0,121620.0,0.06335533]
[1760001883287,0.42151951,121630.0,121620.0,0.06335533]
[1760001883783,0.42151951,121630.0,121620.0,0.02879533]
[1760001883993,0.42151951,121630.0,121620.0,0.00296533]
[1760001883994,0.43691875,121630.0,121620.0,0.00296533]
[1760001884408,0.17983235,121630.0,121620.0,0.11279533]
[1760001884550,0.17983411,121630.0,121620.0,0.11279533]
[1760001885679,0.43692051,121630.0,121620.0,0.11279533]
[1760001886058,0.17983411,121630.0,121620.0,0.36988173]
[1760001886879,0.17983411,121630.0,121620.0,0.11279533]
[1760001887080,0.17983411,121630.0,121620.0,0.37795863]
[1760001887274,0.17983411,121630.0,121620.0,0.11279533]
[1760001887583,0.17983411,121630.0,121620.0,0.12340386]
[1760001887808,0.015401,121630.0,121620.0,0.88212669]
[1760001887940,0.16442053,121640.0,121630.0,0.16443311]
[1760001888146,0.17982539,121640.0,121630.0,0.53134951]
[1760001888411,0.17982539,121640.0,121630.0,0.53340161]
[1760001888778,0.16442053,121640.0,121630.0,0.53340161]
[1760001888993,0.16442053,121640.0,121630.0,0.1118821]
[1760001889201,0.16442053,121640.0,121630.0,0.37683815]
[1760001889355,0.16441959,121640.0,121630.0,0.61652367]
[1760001889736,0.16541959,121640.0,121630.0,0.61652367]
[1760001891367,0.16541959,121640.0,121630.0,0.19500416]
[1760001892393,0.16541959,121640.0,121630.0,0.61652367]
[1760001893001,0.16541959,121640.0,121630.0,0.35943727]
[1760001893201,0.16541959,121640.0,121630.0,0.61652367]
[1760001893975,0.001,121640.0,121630.0,0.61652367]
[1760001894793,0.17262638,121650.0,121630.0,0.61652367]
[1760001894992,0.16541959,121640.0,121630.0,0.31017727]
[1760001895215,0.16541959,121640.0,121630.0,0.56521157]
[1760001895389,0.001,121640.0,121630.0,0.56521157]
[1760001895600,0.17262638,121650.0,121630.0,0.61450157]
[1760001895810,0.17262638,121650.0,121640.0,0.3325164]
[1760001896009,0.17362638,121650.0,121640.0,0.07543]
[1760001896214,0.17362638,121650.0,121640.0,0.1111]
[1760001896823,0.17362638,121650.0,121640.0,0.61814342]
[1760001897031,0.001,121650.0,121640.0,0.61814342]
[1760001897234,0.001,121650.0,121640.0,0.70126548]
[1760001897438,0.16447581,121660.0,121640.0,0.70126548]
[1760001897675,0.16447581,121660.0,121650.0,0.07543]
[1760001897879,0.16447581,121660.0,121650.0,0.1111]
[1760001898727,0.16647581,121660.0,121650.0,0.1111]
[1760001898939,0.16747581,121660.0,121650.0,0.1111]
[1760001899173,0.16547581,121660.0,121650.0,0.1111]
[1760001902035,0.16547581,121660.0,121640.0,0.02767895]
[1760001902036,0.16440608,121650.0,121640.0,0.02767895]
[1760001902243,0.16440608,121650.0,121640.0,0.06181]
[1760001902871,0.16440608,121650.0,121640.0,0.1111]
[1760001903518,0.16540608,121650.0,121640.0,0.1111]
[1760001903931,0.16441959,121640.0,121630.0,0.076]
[1760001904144,0.16441959,121640.0,121630.0,0.19479206]
[1760001904358,0.17362045,121640.0,121630.0,0.06238]
[1760001904574,0.16443311,121630.0,121620.0,0.0764]
[1760001904786,0.16443311,121630.0,121620.0,0.11207]
[1760001904994,0.16443311,121630.0,121620.0,0.06278]
[1760001905211,0.50705694,121630.0,121620.0,0.02711]
[1760001906067,0.16443311,121630.0,121620.0,0.02711]
[1760001906268,0.50705694,121630.0,121620.0,0.0004]
[1760001907756,0.57512468,121630.0,121620.0,0.0004]
[1760001907956,0.59981438,121630.0,121620.0,0.0004]
[1760001908168,0.53174664,121630.0,121620.0,0.00296534]
[1760001909827,0.18912281,121630.0,121620.0,0.00296534]
[1760001910044,0.53174664,121630.0,121620.0,0.00296534]
[1760001911283,0.53274664,121630.0,121620.0,0.00296534]
[1760001912896,0.19012281,121630.0,121620.0,0.00296534]
[1760001913162,0.53274664,121630.0,121620.0,0.00296534]
[1760001914593,0.19012281,121630.0,121620.0,0.00296534]
[1760001914777,0.53274664,121630.0,121620.0,0.00296534]
[1760001915367,0.19012281,121630.0,121620.0,0.00296534]
[1760001915568,0.53274664,121630.0,121620.0,0.00296534]
[1760001915735,0.19012281,121630.0,121620.0,0.00296534]
[1760001915934,0.53274664,121630.0,121620.0,0.00296534]
[1760001917960,0.19012281,121630.0,121620.0,0.11406534]
[1760001919038,0.16543311,121630.0,121620.0,0.11406534]
[1760001921628,0.16543311,121630.0,121620.0,0.06477534]
[1760001922054,0.16543311,121630.0,121620.0,0.00296534]
[1760001922920,0.50805694,121630.0,121620.0,0.00296534]
[1760001923084,0.57621995,121630.0,121620.0,0.00296534]
[1760001923504,0.50805694,121630.0,121620.0,0.00296534]
[1760001925212,0.50805694,121630.0,121620.0,0.03523534]
[1760001925442,0.19012287,121630.0,121620.0,0.11242534]
[1760001926467,0.19012287,121630.0,121620.0,0.06040534]
[1760001928884,0.19012287,121630.0,121620.0,0.00296534]
[1760001932419,0.19012287,121630.0,121620.0,0.03523534]
[1760001932620,0.19012287,121630.0,121620.0,0.00296534]
[1760001934113,1.02650075,121630.0,121620.0,0.00296534]
[1760001934939,0.68387692,121630.0,121620.0,0.00296534]
[1760001935147,1.02650075,121630.0,121620.0,0.00296534]
[1760001937152,0.68387692,121630.0,121620.0,0.00296534]
[1760001937381,1.02650075,121630.0,121620.0,0.00296534]
[1760001938197,0.95586876,121630.0,121620.0,0.00296534]
[1760001938777,0.61324493,121630.0,121620.0,0.00296534]
[1760001938985,0.95586876,121630.0,121620.0,0.03523534]
[1760001939200,0.95586876,121630.0,121620.0,0.00296534]
[1760001939611,0.61324493,121630.0,121620.0,0.03523534]
[1760001939937,0.61324493,121630.0,121620.0,0.00296534]
[1760001940291,0.61324493,121630.0,121620.0,0.03523534]
[1760001940500,0.19012287,121630.0,121620.0,0.06040534]
[1760001940680,0.19012287,121630.0,121620.0,0.11242534]
[1760001940897,0.19012287,121630.0,121620.0,0.06040534]
[1760001941244,0.19012287,121630.0,121620.0,0.11242534]
[1760001941645,0.19012287,121630.0,121620.0,0.06040534]
[1760001944851,0.19012287,121630.0,121620.0,0.00296534]
[1760001945026,0.19012287,121630.0,121620.0,0.03664534]
[1760001946332,0.5327467,121630.0,121620.0,0.03664534]
[1760001946505,0.19012287,121630.0,121620.0,0.03664534]
[1760001948262,0.19012287,121630.0,121620.0,0.11058534]
[1760001950183,0.16543311,121630.0,121620.0,0.11058534]
[1760001956856,0.16543311,121630.0,121620.0,0.53210695]
[1760001957052,0.16543311,121630.0,121620.0,0.78918193]
[1760001957525,0.16543311,121630.0,121620.0,0.53210695]
[1760001960541,0.16543311,121630.0,121620.0,0.27503197]
[1760001960750,0.16543311,121630.0,121620.0,0.53210695]
[1760001960952,0.16543311,121630.0,121620.0,0.11058534]
[1760001961161,0.16543311,121630.0,121620.0,0.38377542]
[1760001961432,0.16543311,121630.0,121620.0,0.53210695]
[1760001963810,0.42250809,121630.0,121620.0,0.06257534]
[1760001964013,0.42250809,121630.0,121620.0,0.00296534]
[1760001964647,0.42250809,121630.0,121620.0,0.03724534]
[1760001966181,0.42250809,121630.0,121620.0,0.00296534]
[1760001967626,0.44719785,121630.0,121620.0,0.00296534]
[1760001970542,0.41954014,121630.0,121620.0,0.00296534]
[1760001972851,0.16443311,121630.0,121620.0,0.00296534]
[1760001973071,0.42150809,121630.0,121620.0,0.00296534]
[1760001977734,0.81259216,121630.0,121620.0,0.00296534]
[1760001977934,1.16798512,121630.0,121620.0,0.00296534]
[1760001978179,1.19813702,121630.0,121610.0,0.0004]
[1760001978453,1.10171865,121620.0,121610.0,0.0004]
[1760001978688,0.86003663,121620.0,121610.0,0.0004]
[1760001978923,0.62765543,121620.0,121610.0,0.0004]
[1760001979158,0.88473041,121620.0,121610.0,0.0004]
[1760001979392,0.62765543,121620.0,121610.0,0.0004]
[1760001979627,0.88473041,121620.0,121610.0,0.00090447]
[1760001979873,0.88773041,121620.0,121610.0,0.00090447]
[1760001980349,0.63065543,121620.0,121610.0,0.00090447]
[1760001980840,0.88773041,121620.0,121610.0,0.00090447]
[1760001981053,0.63365543,121620.0,121610.0,0.00090447]
[1760001981279,0.87533745,121620.0,121610.0,0.00090447]
[1760001981754,0.61826247,121620.0,121610.0,0.00090447]
[1760001981969,0.87533745,121620.0,121610.0,0.00090447]
[1760001982201,0.61826247,121620.0,121610.0,0.00090447]
[1760001982445,0.51044663,121620.0,121610.0,0.31700945]
[1760001982898,0.51044663,121620.0,121610.0,0.05993447]
[1760001984075,0.17044663,121620.0,121610.0,0.36635945]
[1760001984285,0.17044663,121620.0,121610.0,0.36687266]
[1760001986280,0.17044663,121620.0,121610.0,0.78840779]
[1760001986571,0.16443311,121630.0,121610.0,0.87152985]
[1760001986808,0.16443311,121630.0,121620.0,0.75307659]
[1760001987034,0.16443311,121630.0,121620.0,0.78497659]
[1760001987739,0.16643311,121630.0,121620.0,0.78497659]
[1760001987978,0.16743311,121630.0,121620.0,0.78497659]
[1760001988206,0.16543311,121630.0,121620.0,0.78497659]
[1760001988683,0.16743311,121630.0,121620.0,0.62052996]
[1760001988938,0.16743311,121630.0,121620.0,0.10638]
[1760001989167,0.16743311,121630.0,121620.0,0.62052996]
[1760001989394,0.16743311,121630.0,121620.0,0.78497659]
[1760001990363,0.16743311,121630.0,121620.0,0.27082663]
[1760001990817,0.16643311,121630.0,121620.0,0.78497659]
[1760001992187,0.16743311,121630.0,121620.0,0.78497659]
[1760001992924,0.16543311,121630.0,121620.0,0.78497659]
[1760001993375,0.16643311,121630.0,121620.0,0.78497659]
[1760001994945,0.002,121630.0,121620.0,0.78497659]
[1760001995163,0.002,121630.0,121620.0,0.86809865]
[1760001995380,0.002,121630.0,121620.0,1.12517363]
[1760001995593,0.001,121630.0,121620.0,1.12517363]
[1760001996155,0.001,121630.0,121620.0,1.14985508]
[1760001996481,0.16579119,121640.0,121630.0,0.16443311]
[1760001996677,0.16579119,121640.0,121630.0,0.61101015]
[1760001996880,0.0013716,121640.0,121630.0,0.86808513]
[1760001997792,0.0023716,121640.0,121630.0,0.86808513]
[1760001997945,0.0023716,121640.0,121630.0,0.87702783]
[1760001999229,0.16679119,121640.0,121630.0,0.87702783]
[1760002002640,0.0023716,121640.0,121630.0,0.87702783]
[1760002007151,0.1636918,121660.0,121630.0,0.87702783]
[1760002007356,0.18493982,121650.0,121640.0,0.49577457]
[1760002007590,0.16440764,121650.0,121640.0,0.52807457]
[1760002007996,0.53730882,121680.0,121640.0,0.52807457]
[1760002007997,0.50437087,121680.0,121650.0,0.16440608]
[1760002008247,0.17257094,121690.0,121670.0,0.05579]
[1760002008472,0.17257094,121690.0,121680.0,0.05079]
[1760002008709,0.17265821,121700.0,121680.0,0.62072996]
[1760002008917,0.17265821,121700.0,121690.0,0.25707498]
[1760002009126,0.17265821,121700.0,121690.0,0.28068943]
[1760002009334,0.17265821,121700.0,121690.0,0.36377943]
[1760002009748,0.17265821,121700.0,121690.0,0.52813147]
[1760002009956,0.002,121700.0,121690.0,0.52813147]
[1760002010165,0.02667887,121700.0,121690.0,0.52813147]
[1760002010377,0.02467887,121700.0,121690.0,0.78520645]
[1760002010584,0.16437157,121720.0,121700.0,0.16433853]
[1760002010801,0.18904263,121720.0,121710.0,0.31286498]
[1760002011003,0.18904263,121720.0,121710.0,0.10658]
[1760002011224,0.44611761,121720.0,121710.0,0.05579]
[1760002011418,0.18904263,121720.0,121710.0,0.31286498]
[1760002011633,0.18904263,121720.0,121710.0,0.05579]
[1760002012261,0.46143344,121720.0,121710.0,0.05579]
[1760002012478,0.20435846,121720.0,121710.0,0.05579]
[1760002013339,0.46909011,121720.0,121710.0,0.05579]
[1760002013552,0.21201513,121720.0,121710.0,0.31286498]
[1760002014229,0.21201513,121720.0,121710.0,0.05579]
[1760002014230,0.46909011,121720.0,121710.0,0.05579]
[1760002014444,0.21201513,121720.0,121710.0,0.31286498]
[1760002014672,0.1966993,121720.0,121710.0,0.31286498]
[1760002015115,0.1966993,121720.0,121710.0,0.05579]
[1760002015354,0.1996993,121720.0,121710.0,0.10691]
[1760002015596,0.1996993,121720.0,121710.0,0.36398498]
[1760002015837,0.1996993,121720.0,121710.0,0.10691]
[1760002019802,0.19204263,121720.0,121710.0,0.10691]
[1760002020017,0.19204263,121720.0,121710.0,0.05579]
[1760002020228,0.2037936,121720.0,121710.0,0.05579]
[1760002021129,0.19614418,121720.0,121710.0,0.05579]
[1760002021783,0.20379403,121720.0,121710.0,0.02349]
[1760002022186,0.20379403,121720.0,121710.0,0.05461]
[1760002024664,0.03942246,121720.0,121710.0,0.61231052]
[1760002024921,0.0147514,121720.0,121710.0,0.27005503]
[1760002025317,0.0147514,121720.0,121710.0,0.61231052]
[1760002026046,0.0137514,121720.0,121710.0,0.61231052]
[1760002026253,0.0137514,121720.0,121710.0,0.69543258]
[1760002026475,0.01375216,121720.0,121710.0,0.69543258]
[1760002028113,0.01374983,121720.0,121710.0,0.35317709]
[1760002028295,0.01374983,121720.0,121710.0,0.69543258]
[1760002029124,0.01174983,121720.0,121710.0,0.69543258]
[1760002030024,0.01174983,121720.0,121710.0,0.72558448]
[1760002030278,0.01174983,121720.0,121710.0,1.40783997]
[1760002030498,0.00410155,121720.0,121710.0,1.43198981]
[1760002030762,0.00410155,121720.0,121710.0,1.40783997]
[1760002031007,0.00410155,121720.0,121710.0,1.50783996]
[1760002031246,0.00410155,121720.0,121710.0,1.53250047]
[1760002034212,0.00410155,121720.0,121710.0,0.84798949]
[1760002034419,0.00410155,121720.0,121710.0,1.53250047]
[1760002035056,0.00410155,121720.0,121710.0,1.50783996]
[1760002035308,0.00410155,121720.0,121710.0,1.50883996]
[1760002037022,0.00410155,121720.0,121710.0,1.77743996]
[1760002042571,0.00410155,121720.0,121710.0,1.80209962]
[1760002044838,0.00410155,121720.0,121710.0,1.53349962]
[1760002045050,0.00410155,121720.0,121710.0,1.55849961]
[1760002045742,0.00410155,121720.0,121710.0,1.53383995]
[1760002046350,1e-08,121720.0,121710.0,1.53383995]
[1760002046653,1e-08,121720.0,121710.0,1.87609544]
[1760002047114,0.0002,121760.0,121750.0,0.19442294]
[1760002047165,0.0002,121760.0,121750.0,0.53667843]
[1760002047443,0.0002,121760.0,121750.0,0.64281049]
[1760002047713,0.0002,121760.0,121750.0,0.72357049]
[1760002048481,0.00035124,121760.0,121750.0,0.72357049]
[1760002048964,0.00035124,121760.0,121750.0,0.73244314]
[1760002049211,0.00035124,121760.0,121750.0,0.79437181]
[1760002052550,0.00035124,121760.0,121750.0,0.45211632]
[1760002052761,0.00035124,121760.0,121750.0,0.79437181]
[1760002052963,0.00240066,121760.0,121750.0,0.79437181]
[1760002056916,0.00240066,121760.0,121750.0,0.42196442]
[1760002057117,0.00240066,121760.0,121750.0,0.76421991]
[1760002057325,0.16444663,121770.0,121760.0,0.16425755]
[1760002057326,0.0002,121770.0,121760.0,0.16425755]
[1760002057540,0.0002,121770.0,121760.0,1.03566059]
[1760002057744,0.0002,121770.0,121760.0,0.6934051]
[1760002057964,0.00071223,121770.0,121760.0,0.6934051]
[1760002058379,0.00071223,121770.0,121760.0,0.35114961]
[1760002058759,0.00071223,121770.0,121760.0,0.6934051]
[1760002058965,0.00071223,121770.0,121760.0,0.35114961]
[1760002059158,0.00071223,121770.0,121760.0,0.6934051]
[1760002059597,0.00071223,121770.0,121760.0,0.35114961]
[1760002059800,0.00071223,121770.0,121760.0,0.6934051]
[1760002060011,0.00071223,121770.0,121760.0,0.35114961]
[1760002060411,0.00839048,121770.0,121760.0,0.6934051]
[1760002061065,0.00839048,121770.0,121760.0,0.35114961]
[1760002061264,0.00839048,121770.0,121760.0,0.6934051]
[1760002061682,0.17263454,121770.0,121760.0,0.18689206]
[1760002061893,0.02892098,121770.0,121760.0,0.10377]
[1760002062094,0.19316504,121770.0,121760.0,0.2773312]
[1760002062307,0.17263454,121770.0,121760.0,0.26802755]
[1760002062548,0.17263454,121770.0,121760.0,0.61028304]
[1760002062663,0.17263454,121770.0,121760.0,0.26802755]
[1760002062875,0.17263454,121770.0,121760.0,0.61028304]
[1760002063286,0.00839048,121770.0,121760.0,0.61028304]
[1760002063706,0.17263454,121770.0,121760.0,0.61028304]
[1760002064121,0.16495629,121770.0,121760.0,0.61028304]
[1760002064327,0.16495629,121770.0,121760.0,0.26802755]
[1760002064576,0.16495629,121770.0,121760.0,0.61028304]
[1760002065596,0.00071223,121770.0,121760.0,0.61028304]
[1760002065823,0.16495629,121770.0,121760.0,0.61028304]
[1760002066612,0.16495629,121770.0,121760.0,0.26802755]
[1760002068263,0.00071223,121770.0,121760.0,0.26802755]
[1760002068511,0.00071223,121770.0,121760.0,0.6934051]
[1760002068932,0.00071223,121770.0,121760.0,0.35114961]
[1760002069144,0.00071223,121770.0,121760.0,0.6934051]
[1760002069968,0.00071223,121770.0,121760.0,0.35114961]
[1760002070208,0.16495629,121770.0,121760.0,0.6934051]
[1760002070943,0.16495629,121770.0,121760.0,0.35114961]
[1760002072215,0.00071223,121770.0,121760.0,0.35114961]
[1760002074727,0.00071223,121770.0,121760.0,0.6934051]
[1760002074937,0.16495629,121770.0,121760.0,0.6934051]
[1760002075148,0.16495629,121770.0,121760.0,0.35114961]
[1760002075360,0.16495629,121770.0,121760.0,0.30285961]
[1760002075569,0.16495629,121770.0,121760.0,0.34988961]
[1760002075826,0.16495629,121770.0,121760.0,0.10251]
[1760002076043,0.16495629,121770.0,121760.0,0.35900313]
[1760002076637,0.16495629,121770.0,121760.0,0.52326068]
[1760002077332,0.16495629,121770.0,121760.0,0.35900313]
[1760002077530,0.16495629,121770.0,121760.0,0.52326068]
[1760002077926,0.16495629,121770.0,121760.0,0.26676755]
[1760002078235,0.16495629,121770.0,121760.0,0.52326068]
[1760002078590,0.16495629,121770.0,121760.0,0.35900313]
[1760002079350,0.16495629,121770.0,121760.0,0.10251]
[1760002080578,0.16495629,121770.0,121760.0,0.26676755]
[1760002080806,0.16495629,121770.0,121760.0,0.52326068]
[1760002081447,0.16495629,121770.0,121760.0,0.35900313]
[1760002083045,0.16495629,121770.0,121760.0,0.52326068]
[1760002083920,0.16495629,121770.0,121760.0,0.35900313]
[1760002084729,0.16495629,121770.0,121760.0,0.52326068]
[1760002085155,0.16495629,121770.0,121760.0,0.10251]
[1760002085365,0.16495629,121770.0,121760.0,0.35900313]
[1760002085776,0.42144942,121770.0,121760.0,0.05548]
[1760002085982,0.42144942,121770.0,121750.0,0.07004]
[1760002085983,0.16425755,121760.0,121750.0,0.07004]
[1760002086190,0.16425755,121760.0,121750.0,0.32653313]
[1760002086395,0.16425755,121760.0,121750.0,0.35805313]
[1760002086531,0.16425755,121760.0,121750.0,0.10156]
[1760002086739,0.16425755,121760.0,121750.0,0.35805313]
[1760002087163,0.16425755,121760.0,121750.0,0.52232417]
[1760002088432,0.16425755,121760.0,121750.0,0.35805313]
[1760002089816,0.16425755,121760.0,121750.0,0.52232417]
[1760002090333,0.16425755,121760.0,121750.0,0.26583104]
[1760002090539,0.16425755,121760.0,121750.0,0.52232417]
[1760002090991,0.16425755,121760.0,121750.0,0.26583104]
[1760002091170,0.16425755,121760.0,121750.0,0.35805313]
[1760002091397,0.16425755,121760.0,121750.0,0.10156]
[1760002091579,0.16425755,121760.0,121750.0,0.35805313]
[1760002093309,0.15888405,121760.0,121750.0,0.05453]
[1760002093489,0.17941623,121760.0,121750.0,0.31102313]
[1760002093889,0.17941623,121760.0,121750.0,0.05453]
[1760002096060,0.16427104,121750.0,121740.0,0.00136986]
[1760002096229,0.4293568,121750.0,121740.0,0.0015211]
[1760002096658,0.16427104,121750.0,121740.0,0.0330411]
[1760002097688,0.16427104,121750.0,121740.0,0.0015211]
[1760002100164,0.16582709,121740.0,121730.0,0.32653313]
[1760002100379,0.16582709,121740.0,121730.0,0.35805313]
[1760002101525,0.16582709,121740.0,121730.0,0.10156]
[1760002101744,0.16582709,121740.0,121730.0,0.31102313]
[1760002102398,0.16429803,121730.0,121720.0,0.07071]
[1760002102645,0.16429803,121730.0,121720.0,0.44184519]
[1760002104328,0.16429803,121730.0,121720.0,0.31169313]
[1760002105066,0.16429803,121730.0,121720.0,0.35872313]
[1760002105669,0.16429803,121730.0,121720.0,0.35718058]
[1760002106434,0.16429803,121730.0,121720.0,0.77798524]
[1760002106876,0.16429803,121730.0,121720.0,0.77901024]
[1760002109466,0.02466662,121740.0,121730.0,0.16429803]
[1760002109674,0.17384057,121760.0,121750.0,0.16427104]
[1760002109891,0.17399181,121760.0,121750.0,0.35773313]
[1760002110108,0.17399181,121760.0,121750.0,0.10124]
[1760002110330,0.17399181,121760.0,121750.0,0.3579578]
[1760002110539,0.17399181,121760.0,121750.0,0.35773313]
[1760002110756,0.17399181,121760.0,121750.0,0.10124]
[1760002110977,0.17399181,121760.0,121750.0,0.35773313]
[1760002111187,0.17399181,121760.0,121750.0,0.10124]
[1760002111408,0.17399181,121760.0,121750.0,0.35947326]
[1760002111612,0.17399181,121760.0,121750.0,0.35773313]
[1760002112050,0.17399181,121760.0,121750.0,0.52200417]
[1760002112887,0.00252099,121760.0,121750.0,0.60512623]
[1760002113102,0.00252099,121760.0,121750.0,0.86161936]
[1760002113512,0.00252099,121760.0,121750.0,0.89177126]
[1760002114605,0.00252099,121760.0,121750.0,1.48826439]
[1760002114819,0.00252099,121760.0,121750.0,1.23177126]
[1760002115938,0.00252099,121760.0,121750.0,1.2943959]
[1760002116983,0.00252099,121760.0,121750.0,2.42036841]
[1760002117102,0.00252099,121760.0,121750.0,1.65417587]
[1760002117740,0.00252099,121760.0,121750.0,0.88469648]
[1760002117940,0.00252099,121760.0,121750.0,1.65417587]
[1760002118750,0.00252099,121760.0,121750.0,1.67917586]
[1760002119816,0.00152099,121760.0,121750.0,1.67917586]
[1760002120587,0.00152099,121760.0,121750.0,0.90969647]
[1760002120816,0.00152099,121760.0,121750.0,1.39768274]
[1760002121012,0.00152099,121760.0,121750.0,1.65417587]
[1760002129251,0.00152099,121760.0,121750.0,1.55417588]
[1760002129478,0.00152099,121760.0,121750.0,0.78469649]
[1760002129693,0.00152099,121760.0,121750.0,1.29768275]
[1760002130322,0.00152099,121760.0,121750.0,1.55417588]
[1760002135570,0.00152099,121760.0,121750.0,1.29768275]
[1760002136453,0.00152099,121760.0,121750.0,0.78469649]
[1760002136655,0.00152099,121760.0,121750.0,1.29768275]
[1760002137384,0.00152099,121760.0,121750.0,0.95768275]
[1760002137735,0.16423065,121780.0,121760.0,0.16425755]
[1760002137961,0.16424441,121770.0,121760.0,0.58927789]
[1760002138119,0.16424441,121770.0,121760.0,0.61192789]
[1760002138352,0.16424441,121770.0,121760.0,0.64121789]
[1760002138555,0.16424441,121770.0,121760.0,0.68661789]
[1760002138737,0.17244217,121780.0,121760.0,0.34471961]
[1760002138937,0.17244217,121780.0,121770.0,0.36454828]
[1760002139180,0.17244217,121780.0,121770.0,0.43923828]
[1760002139365,0.17244217,121780.0,121770.0,0.09734]
[1760002139570,0.17244217,121780.0,121760.0,0.02265]
[1760002139571,0.16424406,121770.0,121760.0,0.02265]
[1760002139717,0.16424406,121770.0,121760.0,0.06805]
[1760002139934,0.16424406,121770.0,121760.0,0.09734]
[1760002141799,0.16424406,121770.0,121760.0,0.05194]
[1760002142027,0.16424406,121770.0,121760.0,0.02265]
[1760002142428,0.16424406,121770.0,121760.0,0.05194]
[1760002143462,0.16475629,121770.0,121760.0,0.05194]
[1760002143874,0.16475629,121770.0,121760.0,0.09734]
[1760002145186,0.16475629,121770.0,121760.0,0.05194]
[1760002145597,0.16425755,121760.0,121750.0,0.06967]
[1760002145844,0.16425755,121760.0,121750.0,0.05356]
[1760002147563,0.16525755,121760.0,121750.0,0.05356]
[1760002151836,0.17387557,121760.0,121750.0,0.05356]
[1760002153380,0.16525755,121760.0,121750.0,0.05356]
[1760002155006,0.16525755,121760.0,121750.0,0.44085828]
[1760002155214,0.16019651,121770.0,121750.0,0.44085828]
[1760002155449,0.16425755,121760.0,121750.0,0.44085828]
[1760002156908,0.16425755,121760.0,121750.0,0.61358836]
[1760002157587,0.16525755,121760.0,121750.0,0.61358836]
[1760002158037,0.001,121760.0,121750.0,0.69671042]
[1760002158734,0.16525755,121760.0,121750.0,0.53243938]
[1760002158949,0.16525755,121760.0,121750.0,0.69671042]
[1760002160327,0.001,121760.0,121750.0,0.69671042]
[1760002161005,0.16525755,121760.0,121750.0,0.69671042]
[1760002161570,0.16525755,121760.0,121750.0,0.52398034]
[1760002161780,0.16525755,121760.0,121750.0,0.18208206]
[1760002161993,0.16525755,121760.0,121750.0,0.52398034]
[1760002162646,0.16525755,121760.0,121750.0,0.18208206]
[1760002162878,0.16525755,121760.0,121750.0,0.09896]
[1760002163026,0.16525755,121760.0,121750.0,0.05356]
[1760002166328,0.16525755,121760.0,121750.0,0.02427]
[1760002166533,0.16525755,121760.0,121740.0,0.02563987]
[1760002166534,0.16427104,121750.0,121740.0,0.02563987]
[1760002166760,0.16432144,121750.0,121740.0,0.05619987]